Cogmind - Beta 15 @@@ ROGUE MODE // 2025.09.22 @ 14:50:03 Player: Kotyk77 Result: Destroyed by as-20956 with Assembled F-torch Performance ------------- Evolutions (0) 0 Regions Visited (2) 400 Robots Destroyed (13) 65 Value Destroyed (271) 271 Prototype IDs (2) 40 Alien Tech Used (0) 0 Bonus (0) 0 TOTAL SCORE: 776 Bonus ------- None Cogmind --------- Core Integrity 0/250 Matter 252/300 Energy 160/160 System Corruption 1% Temperature Cool (20) Movement Walking (190) Ox1 Location -10/Mines Parts ------- > --- POWER (1) -------- Light Nuclear Core > --- PROPULSION (2) --- Aluminum Leg Aluminum Leg > --- UTILITY (2) ------ Large Storage Unit > --- WEAPON (2) ------- Assault Rifle > --- INVENTORY (15) --- Aluminum Leg Aluminum Leg Improved Heat Sink Seismic Detector Shotgun Light Cannon Light Cannon Light Cannon Grenade Launcher Rocket Launcher Mining Laser Mining Claw Peak State ------------ > --- POWER ------------ Ion Engine > --- PROPULSION ------- Wheel Compact Wheel > --- UTILITY ---------- Large Storage Unit Sensor Array > --- WEAPON ----------- Shotgun Shotgun > --- INVENTORY -------- Light Nuclear Core Aluminum Leg Aluminum Leg Aluminum Leg Aluminum Leg Aluminum Leg Improved Heat Sink Seismic Detector Assault Rifle Shotgun Light Cannon Light Cannon Light Cannon Grenade Launcher Mining Claw [Rating: 11] Favorites ----------- Power Light Ion Engine Engine Light Ion Engine Power Core Light Nuclear Core Propulsion Compact Wheel Leg Aluminum Leg Wheel Compact Wheel Utility Sensor Array Device Sensor Array Storage Small Storage Unit Weapon Shotgun Ballistic Gun Shotgun Build | -11 -10 -10 ------- Run | Yrd Mat Min Slots Evolved . | . . . Power . | . . . Propulsion . | . . . Utility . | . . . Weapon . | . . . Parts Attached 18 | 7 8 3 Power 3 | 1 1 1 Engine 2 | 1 1 . Core 1 | . . 1 Reactor . | . . . Propulsion 6 | 2 3 1 Treads . | . . . Leg 3 | . 2 1 Wheel 3 | 2 1 . Hover . | . . . Flight . | . . . Utility 5 | 2 2 1 Device 3 | 1 1 1 Storage 2 | 1 1 . Processor . | . . . Hackware . | . . . Protection . | . . . Artifact . | . . . Weapon 4 | 2 2 . Energy Gun . | . . . Energy Cannon . | . . . Ballistic Gun 4 | 2 2 . Ballistic Cannon . | . . . Launcher . | . . . Special Weapon . | . . . Impact Weapon . | . . . Slashing Weapon . | . . . Piercing Weapon . | . . . Special Melee Weapon . | . . . Unidentified Prototypes . | . . . Parts Lost 7 | . 1 6 Power 1 | . . 1 Propulsion 2 | . . 2 Utility 2 | . 1 1 Weapon 2 | . . 2 Highest Loss Streak 5 | . 1 5 To Critical Strikes . | . . . Average Backups 9 | 2 9 14 Power . | . 1 . Propulsion 3 | 1 3 2 Utility 1 | . 1 2 Weapon 3 | . 3 8 Tool/Special . | . . . Unused Backups 15 | . 6 9 Power 1 | . 1 . Propulsion 5 | . 4 1 Utility 1 | . . 1 Weapon 8 | . 1 7 Tool/Special . | . . . Average Slot Usage (%) 97 | . 99 86 Engine 13 | . 14 9 Leg 5 | . 5 4 Wheel 22 | . 22 21 Device 12 | . 13 7 Storage 14 | . 14 14 Ballistic Gun 27 | . 27 23 Peak Build Rating 11 | 7 11 11 Average Rating 8 | 5 8 9 On Entrance 5 | . 7 10 Naked Turns . | . . . Heaviest Build 33 | 12 32 33 Greatest Support 26 | 26 26 26 Greatest Overweight (x) 2 | 2 1 2 Average Overweight (x) . | . . 1 Largest Inventory Capacity 15 | 8 15 15 Average Capacity 10 | 7 10 15 Most Carried 15 | 6 15 15 Average Carried 9 | 3 9 14 Final Capacity 15 | 8 15 15 Final Carried 15 | 6 15 12 Class Distribution -------------------- 100% | Mutant Dominant Class ---------------- Mutant | -10/Materials Mutant | -10/Mines Resources | -11 -10 -10 ----------- Run | Yrd Mat Min Matter Collected 607 | 298 286 23 Remotely . | . . . Salvage Created 419 | 142 277 . Parts 26 | 5 21 . Haulers Intercepted . | . . . Recyclers Shooed . | . . . Parts Field Recycled . | . . . Retrieved Matter . | . . . Parts Self-Destructed . | . . . Prevented . | . . . Kills | -11 -10 -10 ------- Run | Yrd Mat Min Combat Hostiles Destroyed 6 | . 6 . Guns 6 | . 6 . Classes Destroyed 5 | 2 3 . Worker 2 | . 2 . Tunneler 2 | 2 . . Recycler 1 | 1 . . Watcher 2 | . 2 . Grunt 6 | . 6 . Best Kill Streak 4 | 3 4 . Combat Bots Only 2 | . 2 . Max Kills in Single Turn 1 | 1 1 . Gunslinging . | . . . Exploded . | . . . Melee . | . . . Uniques/NPCs Destroyed . | . . . Combat | -11 -10 -10 -------- Run | Yrd Mat Min Hostile Shots Fired 53 | . 28 25 Missed 9 | . 5 4 Hits 44 | . 23 21 Melee 4 | . . 4 Projectile 40 | . 23 17 AOE 9 | . . 9 Damage Taken 891 | . 299 592 Core 254 | . 75 179 Absorbed by Shields . | . . . Core Remaining (%) 100 | 100 . . Volleys Fired 48 | 7 36 5 Largest 2 | 2 2 2 Hottest 46 | 40 46 46 Shots Fired 76 | 14 55 7 Gun 76 | 14 55 7 Cannon . | . . . Launcher . | . . . Special . | . . . Kinetic 76 | 14 55 7 Thermal . | . . . Explosive . | . . . Electromagnetic . | . . . Robot Hit Streak 6 | 5 6 4 Robot Miss Streak 5 | 2 5 2 Penetration Max . | . . . Secondary Targets . | . . . Shots Hit Robots 48 | 8 36 4 Core Hits 31 | 4 23 4 Critical Kills . | . . . Critical Parts Destroyed . | . . . Critical Strikes . | . . . Melee Attacks . | . . . Impact . | . . . Slashing . | . . . Piercing . | . . . Sneak Attacks . | . . . Combat Hostiles . | . . . Follow-up Attacks . | . . . Damage Inflicted 747 | 81 586 80 Guns 746 | 81 585 80 Cannons . | . . . Explosions . | . . . Melee . | . . . Ramming 1 | . 1 . Kinetic 746 | 81 585 80 Thermal . | . . . Explosive . | . . . Electromagnetic . | . . . Impact . | . . . Slashing . | . . . Piercing . | . . . Highest Corruption 1 | . 1 1 Average Corruption 1 | . 1 1 Corruption Purged . | . . . Corruption Blocked . | . . . Effects 2 | . . 2 Message Errors 2 | . . 2 Overload Shots . | . . . Overflow Damage . | . . . Projectiles . | . . . Explosions . | . . . Melee . | . . . Knockbacks . | . . . Impact . | . . . Kinetic . | . . . Secondary . | . . . Self-Inflicted Damage . | . . . Shots . | . . . Rammed 1 | . 1 . Targets Rammed 1 | . 1 . Kicked . | . . . Crushed . | . . . Highest Temperature 12 | . 10 12 Average Temperature 6 | . 4 9 Received Heat Transfer 248 | . 168 80 Siege Activations . | . . . Martial Activations . | . . . Shielding Activations . | . . . Robots Disrupted . | . . . Combat Hostiles . | . . . Robots Corrupted . | . . . Combat Hostiles . | . . . Parts Fried . | . . . Impact Corruptions . | . . . Robots Melted . | . . . Combat Hostiles . | . . . Parts Melted . | . . . Heat Transferred . | . . . Parts Sabotaged . | . . . Parts Stolen . | . . . Parts Stripped . | . . . Power Chain Reactions . | . . . Alert | -11 -10 -10 ------- Run | Yrd Mat Min Maximum Alert Level . | . . . Low Security (%) 100 | 100 100 100 Level 1 . | . . . Level 2 . | . . . Level 3 . | . . . Level 4 . | . . . Level 5 . | . . . High Security . | . . . Max Security . | . . . Peak Influence 71 | 5 71 15 Initial 5 | . . 5 Average 12 | 1 15 . Influence Increases 239 | 15 209 15 Destroy 0b10 Robot/C 120 | . 120 . Destroy 0b10 Robot/NC 35 | 15 20 . Destroy Leader 24 | . 24 . Successful Hack 30 | . 30 . Partial Spotted 30 | . 15 15 Influence Decreases 239 | 15 195 29 Entered New Map 9 | . . 9 Time Decay 205 | 15 185 5 Lost Part 10 | . 10 . Lost Ally 15 | . . 15 Squads Dispatched 1 | . 1 . Investigation 1 | . 1 . Extermination . | . . . Reinforcement . | . . . Assault . | . . . Garrison . | . . . Intercept . | . . . Searches Triggered . | . . . Construction Impeded . | . . . Haulers Reinforced . | . . . Active Scanning Responses . | . . . Cargo Convoy Interrupts . | . . . Stealth | -11 -10 -10 --------- Run | Yrd Mat Min Distress Signals 2 | . 2 . Communications Jammed . | . . . Distress Signals . | . . . Times Spotted 24 | . 15 9 Peak Tracking Total 4 | . 4 4 Tactical Retreats . | . . . Traps | -11 -10 -10 ------- Run | Yrd Mat Min Traps Triggered 2 | . 2 . Indirectly . | . . . Trap Hack Attempts . | . . . Triggered . | . . . Disarmed . | . . . Reprogrammed . | . . . Reused . | . . . Traps Extracted . | . . . Installed . | . . . Triggered . | . . . Machines | -11 -10 -10 ---------- Run | Yrd Mat Min Machines Disabled . | . . . Max in Single Turn . | . . . Machines Repaired . | . . . Machines Dismantled . | . . . Machines Sabotaged . | . . . Overloaded Fab Kills . | . . . Hacking | -11 -10 -10 --------- Run | Yrd Mat Min Machines Accessed 3 | . 3 . Terminals 3 | . 3 . Fabricators . | . . . Repair Stations . | . . . Recycling Units . | . . . Scanalyzers . | . . . Garrison Access . | . . . Total Hacks 14 | . 14 . Successful 7 | . 7 . Failed 7 | . 7 . Catastrophic . | . . . Database Lockouts . | . . . Manual 8 | . 8 . Terminals 14 | . 14 . Fabricators . | . . . Repair Stations . | . . . Recycling Units . | . . . Scanalyzers . | . . . Garrison Access . | . . . Terminal Hacks 5 | . 5 . Robot Analysis 2 | . 2 . Prototype ID Bank 1 | . 1 . Branch Access Points 1 | . 1 . Terminal Index 1 | . 1 . Fabricator Hacks . | . . . Repair Station Hacks . | . . . Recycling Unit Hacks . | . . . Scanalyzer . | . . . Garrison Access Hacks . | . . . Unauthorized Hacks 2 | . 2 . Terminals 2 | . 2 . Botnet 2 | . 2 . Fabricators . | . . . Repair Stations . | . . . Recycling Units . | . . . Scanalyzers . | . . . Garrison Access . | . . . Data Cores Recovered . | . . . Used . | . . . Hacking Detections 3 | . 3 . Full Trace Events 2 | . 2 . Feedback Events . | . . . Feedback Blocked . | . . . Robot Schematics Acquired . | . . . Robots Built . | . . . Authchips . | . . . Time . | . . . Total Robot Build Rating . | . . . Part Schematics Acquired . | . . . Parts Built . | . . . Authchips . | . . . Time . | . . . Total Part Build Rating . | . . . Parts Repaired . | . . . Time . | . . . Parts Recycled . | . . . Recycled Matter . | . . . Retrieved Matter . | . . . Retrieved Components . | . . . Parts Scanalyzed . | . . . Part Schematics Acquired . | . . . Parts Damaged . | . . . Bothacking | -11 -10 -10 ------------ Run | Yrd Mat Min Used RIF Installer . | . . . Robots Hacked . | . . . Non-combat . | . . . Combat . | . . . Robot Hacks Applied . | . . . Relay Couplers Released . | . . . Fabnet Peak Effective % . | . . . Robots Rewired . | . . . Allies Hacked . | . . . Hacks Repelled . | . . . Allies | -11 -10 -10 -------- Run | Yrd Mat Min Total Allies 3 | . . 3 Largest Group 3 | . . 3 Highest-Rated Group 40 | . . 40 Highest-Rated Ally 16 | . . 16 Total Orders . | . . . Ally Attacks 10 | . . 10 Total Damage 61 | . . 61 Kills 1 | . . 1 Allies Corrupted . | . . . Allies Melted . | . . . Intel | -11 -10 -10 ------- Run | Yrd Mat Min Active Infowar (turns) 981 | 14 892 75 Sensors 825 | . 825 . Seismic 81 | 14 67 . ECM 75 | . . 75 Robot Analysis Total 2 | . 2 . Derelict Logs Recovered 1 | . . 1 Drone Launches . | . . . Drone Recoveries . | . . . Exploration | -11 -10 -10 ------------- Run | Yrd Mat Min Turns Passed 1153 | 87 925 141 Spaces Moved 731 | 56 585 90 Core 3 | 3 . . Treads . | . . . Legs 94 | . 79 15 Wheels 634 | 53 506 75 Hover . | . . . Flight . | . . . Fastest Speed 50 | 50 90 105 Average Speed 105 | 91 103 129 Slowest Speed 260 | 150 190 260 Overloaded Moves . | . . . Propulsion Burnouts . | . . . Robots Hopped . | . . . Potential Cave-ins . | . . . Cave-ins Triggered . | . . . Exploration Rate (%) 27 | 3 48 32 Regions Visited 2 Branch Regions 1 Pre-discovered Areas . | . . . Known Exits Taken 1 | . 1 . Unknown Exits Taken 1 | 1 . . Scrap Searched . | . . . Spaces Dug . | . . . Terrain Destroyed . | . . . Melee . | . . . Projectile . | . . . AOE . | . . . Terrain Rammed . | . . . Walls Destroyed . | . . . Machines Disabled . | . . . Actions | -11 -10 -10 --------- Run | Yrd Mat Min Total 1036 | 75 854 107 Wait 193 | . 188 5 Move 729 | 55 584 90 Hop . | . . . Pick Up 27 | 6 19 2 Fast Attach 10 | 7 3 . Attach 5 | . . 5 Detach . | . . . Swap 7 | . 7 . Drop 16 | . 16 . Fire 48 | 7 36 5 Melee . | . . . Ram 1 | . 1 . Kick . | . . . Crush . | . . . Escape Stasis . | . . . Rewire . | . . . Trap . | . . . Miscellaneous . | . . . Route ------- -11/Scrapyard -10/Materials (discovered 3 exits: [*Mat] / *Min x2) -10/Mines History --------- Turn | Location | Event 11 | -11/Scrapyard | Discovered new exit (range 16) 88 | -11/Scrapyard | Entered Materials 309 | -10/Materials | Build established: Mutant 353 | -10/Materials | Identified exit to Mines 944 | -10/Materials | Discovered new exit (range 10) 1013 | -10/Materials | Entered Mines 1048 | -10/Mines | Received a Rocket Launcher from a helpful Derelict 1075 | -10/Mines | Assembled infested the area 1086 | -10/Mines | Assisted by bots powering up and referring to "LRC-V3" 1106 | -10/Mines | Core integrity fell below 50% 1130 | -10/Mines | Lost 3 allies 1138 | -10/Mines | Lost 5 parts (1p1n1u2w) 1147 | -10/Mines | Core integrity fell below 20% 1154 | -10/Mines | Destroyed by as-20956 with Assembled F-torch Last Messages --------------- 01099_ Trooper 1b destroyed. 01099_ R-06 Scavenger destroyed. 01101_ D-53 Grenadier destroyed. 01101_ as-46268 destroyed. 01101_ ECM Suite destroyed. 01103_ Ion Engine destroyed. 01103_ Shotgun destroyed. 01109_ D-53 Grenadier destroyed. 01109_ as-36740 destroyed. 01111_ The unstable cave ceiling collapses. 01121_ Acquired Aluminum Leg. 01122_ The unstable cave ceiling collapses. 01125_ Acquired 14 matter. 01127_ The unstable cave ceiling collapses. 01136_ D9KBO=,ZG ,1ZQ%DUEUKS2HC>1J 01138_ Acquired 9 matter. 01145_ The unstable cave ceiling collapses. 01146_ Knocked back. 01146_ Com. Wheel destroyed. 01147_ U-05 Engineer builds a Wall. Map ----- +----------------------------------------------------+ | ?????????????????????????????????????????????????? | | ?????????????????????????????????????????????????? | | ?????????????????????????????????????????????????? | | ?????????????????????????????????????????????????? | | ??????????????????????????????????? ?????????????? | | ??????????????????????????????????? ???????????? | | ??????????????????????????????????? ????????????? | | ??????????????????????????????????? ????????????? | | ?????????????????????????????????? ????????????? | | ?????????????????????????????????? ????????????? | | ?????????????????????????????????? #????????????? | | ?????????????????????????????????? #????????????? | | ?????????????????????????????????? #????????????? | | ?????????????????????????????????? ##???????????? | | ?????????????????????????????????? ##??????????? | | ?????????????????????????#####??## #??????????? | | ?????????????????????????# ####a #??????????? | | #??????????????????###??## ## #???????????? | | #???????????????## #### #?????????????? | | #????????????### # #??????????????? | | ###????????## # # #??????????????? | | ????????## ### = ##??????????????? | | ???????## #?# a ##???????????????? | | ? ??????## #??## a ##???????????????? | | ?# #?????## ##?# a ##??????????????? | | ?# #?##### #### @ # #??????????????? | | ?# ### ### # # #??????????????? | | ?# ## ## # # #??????????????? | | ?# ### # # #??????????????? | | ## ### #### u # #??????????????? | | ## #?## # ##??????????????? | | #??## ### # ##???????????????? | | ##??### ##?# #####????????????????? | | ##???## #####??# #????????????????????? | | #????# #??????# #????????????????????? | | #???# #??????# ????????????????????? | | #??## ##?????? ???????????????????? | | #??## ###??????? ???????????????????? | | #???# #????????## #??????????????????? | | ?? ?????????# ??????????????????? | | ########????????? ??????????????????? | | # ##???????????????? ?????????????????? | | ######????????????????? #?????????????????? | | #?????????????????????? #?????????????????? | | #?????????????????????? ??????????????????? | | ?????????????????????? ????????????????????? | | #??????????????????????????????????????????????? | | #????????????????????????????????????????????????? | | ?????????????????????????????????????????????????? | | ?????????????????????????????????????????????????? | +----------------------------------------------------+ Best States ------------- Heat Dissipation 25 Energy Generation 14 Energy Capacity 250 Matter Stores 300 Matter Capacity 300 Sight Range 16 Robot Scan Range 14 Terrain Scan Density 10 ECM Strength 1 Evasion (%) 50 Item Schematics ----------------- None Robot Schematics ------------------ None Fabricated ------------ Nothing Repaired ---------- Nothing Alien Tech Used ----------------- None Achievements -------------- None Challenges ------------ None Game ------ Seed SchematicSingularityRipteeth Manual? 0 Play Time 00:21:35 Cumulative 59.8 hours Start 2025.09.22 @ 14:26:12 End 2025.09.22 @ 14:50:03 Sessions 9 Manual Loads 0 Difficulty Rogue Special Mode None Game No. 66 Rogue 66 Adventurer 0 Explorer 0 Win Type - Total 0 Types 0/0/0/0/0/0/0/0/0/0 Lore% 18 Gallery% 31 Achievement% 27 Wizard Run 0 Options --------- Layout 1 ASCII 0 Keyboard 0 Movement Numpad Keybinds 0 Fullscreen 1 Font 32/SmallcapsGlow Map View 77x35 Zoom Use 2% Tactical HUD 1 Map Filters NONE Filters NONE Steam 1 RUN: 162d2f3a-59e0-4ce0-bbef-33837a69d60a